bitfinex/quotes_BTCUSD_20220218
["timestamp","ask_amount","ask_price","bid_price","bid_amount"]
[1645162659505,0.37104552,40708.0,40704.0,0.00367896]
[1645162660707,0.37104552,40708.0,40704.0,0.00167896]
[1645162660906,0.37104552,40708.0,40702.0,0.25]
[1645162663455,0.37104552,40708.0,40702.0,0.252]
[1645162664058,0.05,40709.0,40702.0,0.252]
[1645162664260,0.00035241,40710.0,40703.0,0.05]
[1645162664456,0.25944773,40711.0,40703.0,0.05]
[1645162665059,0.33751682,40709.0,40706.0,2.46291496]
[1645162665258,0.382177,40708.0,40702.0,0.25]
[1645162665459,0.05,40708.0,40702.0,0.25]
[1645162665724,0.38751682,40709.0,40702.0,0.25]
[1645162667312,0.33751682,40709.0,40703.0,0.30165894]
[1645162667512,0.33751682,40709.0,40704.0,0.05]
[1645162667713,0.20944773,40711.0,40703.0,0.30165894]
[1645162667913,0.20909532,40711.0,40707.0,0.05]
[1645162668714,0.53547106,40711.0,40707.0,0.05]
[1645162669115,0.20909532,40710.0,40707.0,0.05]
[1645162669557,0.53547106,40711.0,40707.0,0.051]
[1645162670760,0.53547106,40711.0,40707.0,0.0197979]
[1645162671365,0.20909532,40710.0,40707.0,0.0207979]
[1645162672561,0.20909532,40710.0,40707.0,0.0197979]
[1645162673408,0.21009532,40710.0,40707.0,0.0197979]
[1645162674609,0.20909532,40710.0,40707.0,0.0197979]
[1645162675611,0.21009532,40710.0,40707.0,0.0197979]
[1645162676960,0.20909532,40710.0,40707.0,0.0197979]
[1645162677362,0.21009532,40710.0,40707.0,0.0197979]
[1645162678766,0.20909532,40710.0,40707.0,0.0197979]
[1645162679164,0.20909532,40710.0,40702.0,0.5087248]
[1645162679464,0.20909532,40710.0,40704.0,0.0197979]
[1645162679664,0.20909532,40710.0,40702.0,0.5295227]
[1645162679866,0.34917221,40704.0,40702.0,0.5295227]
[1645162680067,0.20909532,40710.0,40702.0,0.5295227]
[1645162680705,0.20909532,40710.0,40709.0,0.00139186]
[1645162681005,0.4824048,40710.0,40709.0,0.00139186]
[1645162681408,0.4834048,40710.0,40709.0,0.00139186]
[1645162682606,0.4824048,40710.0,40709.0,0.00139186]
[1645162685557,0.20909532,40710.0,40709.0,0.00239186]
[1645162686357,0.20909532,40710.0,40709.0,0.02218976]
[1645162686562,0.28278679,40711.0,40709.0,0.02218976]
[1645162686758,0.28278679,40711.0,40709.0,0.02118976]
[1645162687358,0.28278679,40711.0,40709.0,0.02218976]
[1645162688607,0.28278679,40711.0,40709.0,0.02118976]
[1645162689506,0.28278679,40711.0,40709.0,0.02218976]
[1645162690705,0.28278679,40711.0,40709.0,0.02118976]
[1645162691506,0.28278679,40711.0,40709.0,0.02218976]
[1645162692759,0.28278679,40711.0,40709.0,0.02118976]
[1645162693560,0.28278679,40711.0,40709.0,0.02218976]
[1645162694267,0.07369147,40711.0,40709.0,0.02218976]
[1645162694661,0.07369147,40711.0,40709.0,0.02118976]
[1645162695462,0.07369147,40711.0,40709.0,0.02218976]
[1645162696310,0.07358453,40711.0,40709.0,0.27011326]
[1645162696508,0.07358453,40711.0,40710.0,0.24535054]
[1645162696707,0.07358453,40711.0,40709.0,0.31911326]
[1645162697508,0.0094,40713.0,40709.0,0.32111326]
[1645162697708,0.20926114,40715.0,40712.0,0.0197979]
[1645162699466,0.20926114,40716.0,40712.0,0.0217979]
[1645162700763,0.20926114,40716.0,40712.0,0.01359043]
[1645162701263,0.20926114,40716.0,40709.0,0.2979235]
[1645162701463,0.20926114,40716.0,40715.0,0.01359043]
[1645162702666,0.21876114,40717.0,40715.0,0.01359043]
[1645162703311,0.21616114,40717.0,40710.0,0.01359043]
[1645162703610,0.21616114,40717.0,40710.0,0.001]
[1645162703811,0.21616114,40717.0,40716.0,0.01359043]
[1645162704410,0.21616114,40717.0,40716.0,0.26359043]
[1645162704612,0.20926114,40717.0,40716.0,0.26359043]
[1645162704810,0.20926114,40717.0,40716.0,0.31359043]
[1645162705411,0.55590551,40718.0,40716.0,0.31359043]
[1645162705612,0.55625792,40718.0,40716.0,0.31359043]
[1645162705811,0.55590551,40718.0,40716.0,0.26359043]
[1645162706211,0.55590551,40718.0,40716.0,0.2650033]
[1645162707060,0.20926114,40718.0,40716.0,0.2650033]
[1645162707262,0.20926114,40718.0,40716.0,0.25141287]
[1645162707457,0.20926114,40718.0,40716.0,0.25241287]
[1645162707659,0.20926114,40718.0,40716.0,0.2660033]
[1645162708659,0.20926114,40718.0,40716.0,0.2650033]
[1645162709260,0.20926114,40718.0,40716.0,0.25141287]
[1645162711506,0.20926114,40717.0,40716.0,0.2650033]
[1645162711907,0.25926114,40717.0,40716.0,0.2650033]
[1645162713412,0.25426114,40717.0,40716.0,0.2650033]
[1645162713813,0.045,40717.0,40716.0,0.2650033]
[1645162714212,0.045,40717.0,40716.0,0.25141287]
[1645162715157,0.25426114,40717.0,40716.0,0.25141287]
[1645162715558,0.25426114,40717.0,40716.0,0.25241287]
[1645162715758,0.25426114,40717.0,40716.0,0.2660033]
[1645162715960,0.045,40717.0,40716.0,0.2660033]
[1645162716558,0.25426114,40717.0,40716.0,0.2660033]
[1645162716761,0.20926114,40718.0,40716.0,0.2650033]
[1645162717461,0.20926114,40718.0,40716.0,0.2660033]
[1645162717960,0.2094849,40719.0,40716.0,0.3160033]
[1645162718408,0.20926114,40719.0,40716.0,0.2660033]
[1645162718810,0.20926114,40719.0,40716.0,0.2650033]
[1645162719410,0.20926114,40718.0,40717.0,0.01359043]
[1645162719611,0.20926114,40718.0,40716.0,0.25141287]
[1645162719810,0.20926114,40718.0,40717.0,0.01359043]
[1645162720311,0.20926114,40718.0,40716.0,0.25141287]
[1645162720911,0.20926114,40718.0,40717.0,0.01359043]
[1645162721114,0.28328561,40722.0,40717.0,0.01359043]
[1645162721312,0.28328561,40722.0,40716.0,0.66083085]
[1645162721313,0.07402447,40722.0,40721.0,0.01359043]
[1645162721515,0.07367206,40722.0,40721.0,0.01359043]
[1645162721714,0.07367206,40722.0,40721.0,0.06359043]
[1645162721966,0.00035241,40724.0,40722.0,0.59269191]
[1645162722162,0.20926114,40728.0,40722.0,0.25599084]
[1645162722163,0.00035241,40726.0,40722.0,0.25599084]
[1645162722362,0.20926114,40728.0,40723.0,0.0097623]
[1645162722363,0.00045524,40724.0,40723.0,0.0097623]
[1645162722564,0.00010283,40724.0,40723.0,0.0097623]
[1645162722767,0.00010283,40724.0,40723.0,0.02335273]
[1645162723366,0.00035241,40725.0,40723.0,0.02335273]
[1645162723565,0.0045154,40729.0,40723.0,0.07335273]
[1645162723566,0.0004308,40729.0,40723.0,0.07335273]
[1645162723763,0.0004308,40729.0,40728.0,0.01359043]
[1645162725567,0.0004308,40729.0,40728.0,0.01559043]
[1645162726808,0.0004308,40729.0,40728.0,0.26359043]
[1645162727011,0.0004308,40729.0,40728.0,0.31279043]
[1645162729558,0.0004308,40729.0,40728.0,0.61624611]
[1645162730259,0.0004308,40729.0,40728.0,0.31579043]
[1645162730857,0.0004308,40729.0,40728.0,0.20257633]
[1645162731056,0.0004308,40729.0,40728.0,0.20425648]
[1645162731858,0.00107208,40731.0,40728.0,0.20425648]
[1645162732858,0.0008616,40731.0,40728.0,0.20425648]
[1645162733059,0.0008616,40731.0,40729.0,0.33883618]
[1645162733311,0.20906603,40738.0,40730.0,0.0492]
[1645162733312,0.2099078,40738.0,40730.0,0.0492]
[1645162733510,0.00149463,40738.0,40730.0,0.0492]
[1645162734110,0.00065286,40738.0,40731.0,0.3]
[1645162734411,0.00065286,40738.0,40735.0,0.26417215]
[1645162735310,0.00065286,40738.0,40732.0,0.0492]
[1645162735512,0.00065286,40738.0,40733.0,0.0096]
[1645162735711,0.29909935,40738.0,40733.0,0.0096]
[1645162736311,0.29909935,40738.0,40733.0,0.23718435]
[1645162736713,0.34920235,40738.0,40733.0,0.23718435]
[1645162737460,0.34920235,40738.0,40733.0,0.28718435]
[1645162737659,0.34909935,40738.0,40733.0,0.28718435]
[1645162738061,0.34932371,40738.0,40733.0,0.28718435]
[1645162738262,0.34932371,40738.0,40733.0,0.05]
[1645162738466,0.34932371,40738.0,40730.0,0.17389581]
[1645162738863,0.34909935,40738.0,40730.0,0.17389581]
[1645162739063,0.00023096,40736.0,40730.0,0.17389581]
[1645162739264,0.29909935,40738.0,40731.0,0.32496985]
[1645162740733,0.29909935,40738.0,40730.0,0.4303353]
[1645162740928,0.29909935,40738.0,40735.0,0.00208489]
[1645162741328,0.34909935,40738.0,40735.0,0.00208489]
[1645162741527,0.34909935,40738.0,40735.0,0.00408489]
[1645162742729,0.29909935,40738.0,40735.0,0.00208489]
[1645162743529,0.29909935,40738.0,40735.0,0.00308489]
[1645162744762,0.29909935,40738.0,40735.0,0.00208489]
[1645162744963,0.00065286,40738.0,40735.0,0.00208489]
[1645162746167,0.00065286,40738.0,40734.0,0.01198052]
[1645162747666,0.00065286,40738.0,40734.0,0.00208052]
[1645162747667,0.00089082,40738.0,40734.0,0.00208052]
[1645162748613,0.00065286,40738.0,40734.0,0.00208052]
[1645162748814,0.00089082,40738.0,40734.0,0.00208052]
[1645162749613,0.00089082,40738.0,40734.0,0.00408052]
[1645162749814,0.00065286,40738.0,40734.0,0.00408052]
[1645162750015,0.00089082,40738.0,40734.0,0.00408052]
[1645162750819,0.00089082,40738.0,40736.0,0.0020827]
[1645162751016,0.00065286,40738.0,40736.0,0.0020827]
[1645162751215,0.00089082,40738.0,40736.0,0.0020827]
[1645162751718,0.00089082,40738.0,40736.0,0.0030827]
[1645162752163,0.00065286,40738.0,40736.0,0.0030827]
[1645162752763,0.00065286,40738.0,40736.0,0.0020827]
[1645162753565,0.00065286,40738.0,40736.0,0.0030827]
[1645162754665,0.00100175,40738.0,40736.0,0.0030827]
[1645162754866,0.00100175,40738.0,40736.0,0.0020827]
[1645162756110,0.00100175,40738.0,40731.0,0.00266441]
[1645162756912,0.00100175,40738.0,40731.0,0.00166441]
[1645162757116,0.00123971,40738.0,40731.0,0.00166441]
[1645162757513,0.00123971,40738.0,40731.0,0.00366441]
[1645162758113,0.00100175,40738.0,40731.0,0.00366441]
[1645162758313,0.00123971,40738.0,40731.0,0.00366441]
[1645162758913,0.00123971,40738.0,40731.0,0.00166441]
[1645162759314,0.00100175,40738.0,40731.0,0.00166441]
[1645162759562,0.00123971,40738.0,40731.0,0.00154906]
[1645162759765,0.00123971,40738.0,40731.0,0.00354906]
[1645162760663,0.00100175,40738.0,40731.0,0.00354906]
[1645162760863,0.00123971,40738.0,40733.0,0.0016714]
[1645162761565,0.332177,40737.0,40733.0,0.0016714]
[1645162761767,0.20891809,40734.0,40733.0,0.0016714]
[1645162761964,0.25891809,40734.0,40733.0,0.00093791]
[1645162762167,0.05,40734.0,40733.0,0.00093791]
[1645162762367,0.00065286,40734.0,40733.0,0.00093791]
[1645162762565,0.05065286,40734.0,40733.0,0.00093791]
[1645162762967,0.22132435,40735.0,40734.0,0.07521739]
[1645162763223,0.22228118,40735.0,40734.0,0.07521739]
[1645162763614,0.22428118,40735.0,40734.0,0.07521739]
[1645162764814,0.22228118,40735.0,40734.0,0.07521739]
[1645162765614,0.22428118,40735.0,40734.0,0.07521739]
[1645162766962,0.22228118,40735.0,40734.0,0.07521739]
[1645162767568,0.22428118,40735.0,40734.0,0.07521739]
[1645162768164,0.55645818,40735.0,40734.0,0.07521739]
[1645162768365,0.65645818,40735.0,40734.0,0.07521739]
[1645162768563,0.32428118,40735.0,40734.0,0.07521739]
[1645162768765,0.63817289,40735.0,40734.0,0.07521739]
[1645162768964,0.63617289,40735.0,40734.0,0.07521739]
[1645162769265,0.96834989,40735.0,40734.0,0.07521739]
[1645162769464,1.26834989,40735.0,40734.0,0.07521739]
[1645162769671,0.93617289,40735.0,40734.0,0.07521739]
[1645162770065,0.71519743,40735.0,40734.0,0.07521739]
[1645162770465,0.41519743,40735.0,40734.0,0.07521739]
[1645162770715,0.10130572,40735.0,40734.0,0.07521739]
[1645162770910,0.00130572,40735.0,40734.0,0.07521739]
[1645162771111,0.24477192,40735.0,40734.0,0.07521739]
[1645162771512,1.54877192,40735.0,40734.0,0.07521739]
[1645162771711,1.86466363,40735.0,40734.0,0.07521739]
[1645162771909,1.96466363,40735.0,40734.0,0.07521739]
[1645162772311,0.56066363,40735.0,40734.0,0.07521739]
[1645162772512,0.24677192,40735.0,40734.0,0.07521739]
[1645162772914,0.00330572,40735.0,40734.0,0.07521739]
[1645162774213,0.22688323,40735.0,40734.0,0.07521739]
[1645162775066,0.22488323,40735.0,40734.0,0.07521739]
[1645162775668,0.22588323,40735.0,40734.0,0.07521739]
[1645162776068,0.00230572,40735.0,40734.0,0.07521739]
[1645162776870,0.00130572,40735.0,40734.0,0.07521739]
[1645162779613,0.00330572,40735.0,40734.0,0.07521739]
[1645162781015,0.00130572,40735.0,40734.0,0.07521739]
[1645162783469,0.26280394,40735.0,40734.0,0.07521739]
[1645162783668,0.00330572,40735.0,40734.0,0.07521739]
[1645162784969,0.00130572,40735.0,40734.0,0.07521739]
[1645162785827,0.00330572,40735.0,40734.0,0.07521739]
[1645162786823,0.20512776,40735.0,40734.0,0.07521739]
[1645162787022,0.20312776,40735.0,40734.0,0.07521739]
[1645162791468,0.00130572,40735.0,40734.0,0.07521739]
[1645162794314,0.26280394,40735.0,40734.0,0.07512444]
[1645162795613,0.3364521,40735.0,40734.0,0.07512444]
[1645162796013,0.26280394,40735.0,40734.0,0.07512444]
[1645162796216,0.46916443,40735.0,40734.0,0.07512444]
[1645162798065,0.20766621,40735.0,40734.0,0.07512444]
[1645162800268,1.51166621,40735.0,40734.0,0.07512444]
[1645162800467,0.52155792,40735.0,40734.0,0.07512444]
[1645162800721,0.62155792,40735.0,40734.0,0.07512444]
[1645162801614,0.52155792,40735.0,40734.0,0.07512444]
[1645162801812,0.62155792,40735.0,40734.0,0.07512444]
[1645162804017,0.30766621,40735.0,40734.0,0.07512444]
[1645162804317,0.20766621,40735.0,40734.0,0.07512444]
[1645162805365,0.52155792,40735.0,40734.0,0.07512444]
[1645162805565,0.62155792,40735.0,40734.0,0.07512444]
[1645162806167,0.30766621,40735.0,40734.0,0.07512444]
[1645162806371,0.52155792,40735.0,40734.0,0.07512444]
[1645162806567,0.20766621,40735.0,40734.0,0.07512444]
[1645162810222,1.80457642,40735.0,40734.0,0.07512444]
[1645162810430,1.61166621,40735.0,40734.0,0.07512444]
[1645162810724,0.30766621,40735.0,40734.0,0.07512444]
[1645162811424,1.61166621,40735.0,40734.0,0.07512444]
[1645162811629,1.51166621,40735.0,40734.0,0.07512444]
[1645162811825,1.61166621,40735.0,40734.0,0.07512444]
[1645162812069,1.66086621,40735.0,40734.0,0.07512444]
[1645162812469,1.56086621,40735.0,40734.0,0.07512444]
[1645162812668,1.66086621,40735.0,40734.0,0.07512444]
[1645162813168,0.35686621,40735.0,40734.0,0.07512444]
[1645162813768,0.57075697,40735.0,40734.0,0.07512444]
[1645162813967,0.67075697,40735.0,40734.0,0.07512444]
[1645162814171,0.46439648,40735.0,40734.0,0.07512444]
[1645162814367,0.74737348,40735.0,40734.0,0.07512444]
[1645162814569,0.41519648,40735.0,40734.0,0.07512444]
[1645162814770,0.00130572,40735.0,40734.0,0.07512444]
[1645162814971,0.26286907,40735.0,40734.0,0.07512444]
[1645162815171,0.00130572,40735.0,40734.0,0.07512444]
[1645162815825,0.00230572,40735.0,40734.0,0.07512444]
[1645162816026,0.26386907,40735.0,40734.0,0.07512444]
[1645162817124,0.26286907,40735.0,40734.0,0.07512444]
[1645162817326,0.00130572,40735.0,40734.0,0.07506048]
[1645162817725,0.2073353,40735.0,40734.0,0.07506048]
[1645162818426,0.00330572,40735.0,40734.0,0.07506048]
[1645162819027,0.00130572,40735.0,40734.0,0.07506048]
[1645162819976,0.26487741,40735.0,40734.0,0.07506048]
[1645162820976,0.26287741,40735.0,40734.0,0.07506048]
[1645162821578,0.76425472,40735.0,40734.0,0.07506048]
[1645162821781,0.46625472,40735.0,40734.0,0.07506048]
[1645162822778,0.20468303,40735.0,40734.0,0.07506048]
[1645162822979,0.20137731,40735.0,40734.0,0.07506048]
[1645162823224,0.2238585,40736.0,40735.0,0.27438604]
[1645162825517,0.00203561,40736.0,40735.0,0.27438604]
[1645162826118,0.49893163,40737.0,40735.0,0.27438604]
[1645162827370,0.31389076,40736.0,40735.0,0.27438604]
[1645162827570,0.69254014,40737.0,40735.0,0.27438604]
[1645162827769,0.69454014,40737.0,40735.0,0.27438604]
[1645162829576,0.49893163,40737.0,40735.0,0.27438604]
[1645162829774,0.50093163,40737.0,40735.0,0.27438604]
[1645162831058,0.49893163,40737.0,40735.0,0.27438604]
[1645162834871,0.332177,40736.0,40735.0,0.27438604]
[1645162835272,0.49893163,40737.0,40735.0,0.27438604]
[1645162838824,0.26156274,40736.0,40735.0,0.27438604]
[1645162839022,0.38520661,40737.0,40735.0,0.27438604]
[1645162839722,0.26156274,40736.0,40735.0,0.27438604]
[1645162839926,0.38520661,40737.0,40735.0,0.27538604]
[1645162841826,0.38520661,40737.0,40735.0,0.27638604]
[1645162842083,0.38520661,40737.0,40735.0,0.27538604]
[1645162843086,0.20921934,40736.0,40735.0,0.27438604]
[1645162843286,0.33286321,40737.0,40735.0,0.27438604]
[1645162843488,0.12364387,40737.0,40735.0,0.27438604]
[1645162843686,0.20921997,40736.0,40735.0,0.27438604]
[1645162843885,0.20921997,40736.0,40735.0,0.27538604]
[1645162844489,0.12364387,40737.0,40735.0,0.27538604]
[1645162844889,0.20921797,40736.0,40735.0,0.27538604]
[1645162845095,0.20921797,40736.0,40735.0,0.27438604]
[1645162845292,0.33286184,40737.0,40735.0,0.27438604]
[1645162845491,0.20921797,40736.0,40735.0,0.27438604]
[1645162845924,0.20921797,40736.0,40735.0,0.27538604]
[1645162847123,0.44660461,40737.0,40735.0,0.27438604]
[1645162847423,0.38520661,40737.0,40735.0,0.27438604]
[1645162847824,0.38520661,40737.0,40735.0,0.27538604]
[1645162848825,0.20921363,40736.0,40735.0,0.27538604]
[1645162849225,0.20921363,40736.0,40735.0,0.27438604]
[1645162849472,0.38520661,40737.0,40735.0,0.27438604]
[1645162849671,0.31156274,40737.0,40735.0,0.27438604]
[1645162849872,0.332177,40736.0,40735.0,0.27538604]
[1645162850071,0.59373974,40736.0,40735.0,0.27538604]
[1645162850274,0.26156274,40736.0,40735.0,0.27538604]
[1645162851171,0.26156274,40736.0,40735.0,0.27438604]
[1645162851573,0.31156274,40737.0,40735.0,0.27438604]
[1645162852174,0.05,40737.0,40735.0,0.27438604]
[1645162852373,0.20921658,40736.0,40735.0,0.27438604]
[1645162852777,0.25921658,40736.0,40735.0,0.27438604]
[1645162853924,0.25921658,40736.0,40735.0,0.27538604]
[1645162854123,0.20921598,40736.0,40735.0,0.27538604]
[1645162854923,0.34543288,40737.0,40735.0,0.27538604]
[1645162855124,0.60695286,40737.0,40735.0,0.27438604]
[1645162857675,0.26151998,40736.0,40735.0,0.27438604]
[1645162857878,0.05,40737.0,40735.0,0.27438604]
[1645162857879,0.31151998,40737.0,40735.0,0.27438604]
[1645162858376,0.05,40737.0,40735.0,0.27438604]
[1645162858777,0.26175057,40738.0,40735.0,0.27438604]
[1645162858778,0.31175057,40738.0,40735.0,0.27438604]
[1645162858975,0.20923269,40736.0,40735.0,0.27438604]
[1645162859376,0.05,40736.0,40735.0,0.27438604]
[1645162859574,0.31175057,40738.0,40735.0,0.27438604]
[1645162859774,0.20923269,40736.0,40735.0,0.27438604]
[1645162859975,0.31175057,40738.0,40735.0,0.27438604]
[1645162860176,0.05,40736.0,40735.0,0.27438604]
[1645162860377,0.31151998,40738.0,40735.0,0.27438604]
[1645162860574,0.20423371,40736.0,40735.0,0.27438604]
[1645162860821,0.05,40736.0,40735.0,0.27438604]
[1645162861224,0.31151998,40738.0,40735.0,0.27438604]
[1645162861621,0.31174261,40738.0,40735.0,0.27438604]
[1645162862023,0.31174261,40738.0,40735.0,0.27538604]
[1645162862523,0.31151998,40738.0,40735.0,0.27538604]
[1645162863123,0.31151998,40738.0,40735.0,0.27438604]
[1645162863323,0.37291698,40738.0,40735.0,0.27438604]
[1645162864873,0.26151998,40737.0,40735.0,0.27438604]
[1645162865273,0.25651998,40737.0,40735.0,0.27438604]
[1645162865675,0.25651998,40737.0,40735.0,0.57438604]
[1645162865875,0.05,40738.0,40735.0,0.57538604]
[1645162866074,0.00022317,40739.0,40735.0,0.27538604]
[1645162866274,0.36627286,40741.0,40735.0,0.57538604]
[1645162866475,0.00022317,40739.0,40735.0,0.57538604]
[1645162866676,0.00022317,40739.0,40735.0,0.27538604]
[1645162867075,0.00022317,40739.0,40735.0,0.57438604]
[1645162867276,0.00022317,40739.0,40735.0,0.27438604]
[1645162867477,0.36627286,40741.0,40735.0,0.27438604]
[1645162867676,0.00022317,40739.0,40735.0,0.27438604]
[1645162867875,0.00022317,40739.0,40735.0,0.27538604]
[1645162868720,0.36627286,40741.0,40735.0,0.27538604]
[1645162868918,0.00022313,40739.0,40735.0,0.27538604]
[1645162869118,0.00022313,40739.0,40735.0,0.27438604]
[1645162869920,0.36627286,40741.0,40735.0,0.27538604]
[1645162870118,0.00022313,40739.0,40735.0,0.54265455]
[1645162870321,0.00022313,40739.0,40735.0,0.27538604]
[1645162870823,0.25921146,40736.0,40735.0,0.27538604]
[1645162871221,0.25921146,40736.0,40735.0,0.27438604]
[1645162872068,0.25921146,40736.0,40735.0,0.27538604]
[1645162873474,0.05,40736.0,40735.0,0.27438604]
[1645162873870,0.20921831,40736.0,40735.0,0.27438604]
[1645162874272,0.25921831,40736.0,40735.0,0.27438604]
[1645162877025,0.25922368,40736.0,40735.0,0.27438604]
[1645162877224,0.25922368,40736.0,40735.0,0.69438604]
[1645162878125,0.20922506,40736.0,40735.0,0.69438604]
[1645162878325,0.25922506,40736.0,40735.0,0.69438604]
[1645162878928,0.05,40736.0,40735.0,0.69438604]
[1645162879327,0.31152228,40737.0,40735.0,0.69438604]
[1645162888175,0.26152228,40736.0,40735.0,0.69438604]
[1645162888377,0.05,40737.0,40735.0,0.69438604]
[1645162888378,0.31152228,40737.0,40735.0,0.69438604]
[1645162888575,0.26152228,40737.0,40735.0,0.69438604]
[1645162889074,0.26152228,40736.0,40735.0,0.69438604]
[1645162889278,0.31152228,40736.0,40735.0,0.69438604]
[1645162889976,0.31152228,40736.0,40735.0,0.69431363]
[1645162890177,0.26152228,40737.0,40735.0,0.69431363]
[1645162890576,0.26152228,40736.0,40735.0,0.69431363]
[1645162890824,0.31152228,40736.0,40735.0,0.69431363]
[1645162891424,0.26152228,40737.0,40735.0,0.69431363]
[1645162891724,0.26152228,40736.0,40735.0,0.69431363]
[1645162892224,0.94369928,40736.0,40735.0,0.69431363]
[1645162892426,0.682177,40736.0,40735.0,0.69431363]
[1645162893625,0.7,40735.0,40729.0,0.00029486]
[1645162893830,0.332177,40729.0,40724.0,0.20818169]
[1645162894029,0.332177,40729.0,40728.0,0.00029558]
[1645162894228,0.332177,40726.0,40720.0,0.00029558]
[1645162894479,0.332177,40721.0,40718.0,0.00029558]
[1645162894674,0.25096896,40721.0,40717.0,0.00029558]
[1645162894875,0.111422,40721.0,40716.0,0.00029558]
[1645162895078,0.111423,40721.0,40716.0,0.21794399]
[1645162895275,0.05,40720.0,40716.0,0.00029558]
[1645162895474,0.05,40720.0,40715.0,0.06185788]
[1645162895675,0.061423,40721.0,40715.0,0.06185788]
[1645162895676,0.111423,40721.0,40715.0,0.05209558]
[1645162895874,0.061423,40721.0,40715.0,0.05209558]
[1645162896076,0.122841,40721.0,40715.0,0.05209558]
[1645162896275,0.172841,40721.0,40715.0,0.05209558]
[1645162896476,0.332177,40719.0,40715.0,0.05209558]
[1645162896678,0.30205514,40720.0,40715.0,0.05209558]
[1645162897276,0.30205514,40720.0,40716.0,0.001]
[1645162897476,0.30205514,40720.0,40716.0,0.00129558]
[1645162897877,0.05,40721.0,40716.0,0.00129558]
[1645162898324,0.59951925,40723.0,40716.0,0.00029558]
[1645162898523,0.59951925,40723.0,40715.0,0.05209558]
[1645162898728,0.69951925,40723.0,40715.0,0.05209558]
[1645162899524,0.69951925,40723.0,40715.0,0.05309558]
[1645162900026,0.59951925,40723.0,40715.0,0.05309558]
[1645162900227,0.29746411,40723.0,40715.0,0.05309558]
[1645162900826,0.29746411,40723.0,40715.0,0.05209558]
[1645162901225,0.29746411,40723.0,40716.0,0.0097623]
[1645162901427,0.29746411,40723.0,40716.0,0.01005788]
[1645162901829,0.05,40724.0,40720.0,0.31536352]
[1645162902074,0.35236209,40727.0,40720.0,0.31536352]
[1645162902478,0.35236209,40727.0,40720.0,0.3156591]
[1645162902874,0.24906681,40726.0,40720.0,0.3156591]
[1645162904676,0.24906681,40726.0,40720.0,0.00029558]
[1645162904876,0.24906681,40726.0,40719.0,0.0097623]
[1645162905080,0.393589,40725.0,40717.0,0.00029558]
[1645162905278,0.061414,40723.0,40716.0,0.11929558]
[1645162905931,0.061414,40723.0,40719.0,0.34737812]
[1645162906329,0.05,40724.0,40719.0,0.35714042]
[1645162906529,0.05,40724.0,40719.0,0.34737812]
[1645162906728,0.05,40725.0,40719.0,0.34737812]
[1645162907530,0.05,40725.0,40719.0,0.34837812]
[1645162907734,0.111411,40725.0,40719.0,0.34837812]
[1645162908731,0.111411,40725.0,40719.0,0.34737812]
[1645162908931,0.111411,40725.0,40717.0,0.00029558]
[1645162909132,0.111411,40725.0,40716.0,0.36929558]
[1645162909579,0.30205514,40724.0,40716.0,0.36929558]
[1645162909776,0.061416,40723.0,40716.0,0.36929558]
[1645162909977,0.061416,40723.0,40716.0,0.64623855]
[1645162910679,0.19898534,40719.0,40716.0,0.64623855]
[1645162910878,0.19898534,40719.0,40716.0,0.25029558]
[1645162911179,0.24898534,40719.0,40716.0,0.25029558]
[1645162911978,0.05,40719.0,40716.0,0.58741862]
[1645162912178,0.05,40719.0,40716.0,0.25029558]
[1645162912379,0.061416,40723.0,40716.0,0.25029558]
[1645162912678,0.061419,40722.0,40716.0,0.25029558]
[1645162912878,0.111419,40722.0,40716.0,0.25029558]
[1645162913080,0.40003889,40724.0,40716.0,0.25029558]
[1645162913831,0.26609536,40717.0,40716.0,0.25029558]
[1645162914930,0.59827236,40717.0,40716.0,0.25029558]
[1645162915133,0.94838664,40717.0,40716.0,0.25029558]
[1645162915331,0.64827236,40717.0,40716.0,0.25029558]
[1645162915733,0.94838664,40717.0,40716.0,0.25029558]
[1645162916529,0.64827236,40717.0,40716.0,0.25029558]
[1645162917279,0.94838664,40717.0,40716.0,0.25029558]
[1645162917681,0.64827236,40717.0,40716.0,0.25029558]
[1645162917883,0.74827236,40717.0,40716.0,0.25029558]
[1645162920482,0.94838664,40717.0,40716.0,0.25029558]
[1645162920740,1.04838664,40717.0,40716.0,0.25029558]
[1645162921332,0.74827236,40717.0,40716.0,0.25029558]
[1645162924236,2.31970004,40717.0,40716.0,0.25029558]
[1645162924479,2.36890004,40717.0,40716.0,0.25029558]
[1645162924678,0.79747236,40717.0,40716.0,0.25029558]
[1645162929544,0.79947236,40717.0,40716.0,0.25029558]
[1645162929743,0.84947236,40717.0,40716.0,0.25029558]
[1645162930945,0.84747236,40717.0,40716.0,0.25029558]
[1645162932080,0.79747236,40717.0,40716.0,0.25029558]
[1645162933180,0.796854,40717.0,40716.0,0.25029558]
[1645162935733,0.798854,40717.0,40716.0,0.24242223]
[1645162936928,0.747654,40717.0,40716.0,0.24242223]
[1645162939579,0.749654,40717.0,40716.0,0.24242223]
[1645162940579,0.798854,40717.0,40716.0,0.24242223]
[1645162940779,2.100854,40717.0,40716.0,0.24242223]
[1645162940979,2.100854,40717.0,40716.0,0.24382112]
[1645162941581,2.31212679,40717.0,40716.0,0.24382112]
[1645162942882,2.31012679,40717.0,40716.0,0.24382112]
[1645162943083,2.31012679,40717.0,40715.0,0.0518]
[1645162943084,0.332177,40716.0,40713.0,0.15730277]
[1645162943331,0.0492,40715.0,40713.0,0.15752665]
[1645162943533,1.94556977,40714.0,40713.0,0.15752665]
[1645162943733,1.99556977,40714.0,40713.0,0.15752665]
[1645162943930,0.382177,40714.0,40713.0,0.15752665]
[1645162944130,0.482177,40714.0,40713.0,0.15752665]
[1645162944435,0.382177,40714.0,40713.0,0.15730277]
[1645162945433,0.482177,40714.0,40713.0,0.15730277]
[1645162945634,0.483177,40714.0,40713.0,0.15730277]
[1645162945833,0.383177,40714.0,40713.0,0.15730277]
[1645162946835,0.382177,40714.0,40713.0,0.15730277]
[1645162948677,0.482177,40714.0,40713.0,0.15730277]
[1645162949580,0.382177,40714.0,40713.0,0.15730277]
[1645162951630,0.384177,40714.0,40713.0,0.15730277]
[1645162952030,0.384177,40714.0,40713.0,0.40730277]
[1645162952832,0.484177,40714.0,40713.0,0.40730277]
[1645162953031,0.482177,40714.0,40713.0,0.40730277]
[1645162953433,1.786177,40714.0,40713.0,0.40730277]
[1645162953631,0.384177,40714.0,40713.0,0.40730277]
[1645162953833,1.688177,40714.0,40713.0,0.40730277]
[1645162954035,1.788177,40714.0,40713.0,0.40730277]
[1645162954882,1.786177,40714.0,40713.0,0.40730277]
[1645162955679,1.788177,40714.0,40713.0,0.40730277]
[1645162956781,1.838177,40714.0,40713.0,0.40730277]
[1645162956983,1.836177,40714.0,40713.0,0.40730277]
[1645162957782,1.838177,40714.0,40713.0,0.40730277]
[1645162957982,0.4073,40713.0,40701.0,0.26022712]
[1645162958248,0.332177,40705.0,40696.0,0.20816468]
[1645162958439,0.332177,40705.0,40694.0,0.20816468]